bitfinex/quotes_SOLUSD_20240702
["timestamp","ask_amount","ask_price","bid_price","bid_amount"]
[1719903345488,12.29,147.98,147.91,10.0]
[1719903345780,12.29,147.98,147.92,12.29]
[1719903346077,12.29,147.98,147.93,12.29]
[1719903346383,6.7573,147.99,147.93,12.29]
[1719903346567,12.29,147.98,147.93,12.29]
[1719903347372,6.7573,147.99,147.93,12.29]
[1719903347562,12.29,147.98,147.95,6.759]
[1719903348078,19.7892782,147.98,147.94,23.6578]
[1719903348276,19.0481,147.97,147.94,16.8985]
[1719903348478,12.29,147.96,147.94,16.8985]
[1719903349960,13.0316782,147.96,147.93,6.7598]
[1719903350282,12.29,147.95,147.93,6.7598]
[1719903351285,6.7577,147.98,147.94,6.7594]
[1719903351487,12.29,147.96,147.95,6.759]
[1719903351985,12.29,147.97,147.95,6.759]
[1719903352294,12.29,147.97,147.94,6.7593]
[1719903355582,0.7416782,147.98,147.95,6.7589]
[1719903355768,12.29,147.97,147.95,6.7589]
[1719903356491,12.29,147.97,147.94,6.7593]
[1719903358877,19.0481,147.97,147.93,23.6592]
[1719903359590,12.29,147.96,147.93,23.6592]
[1719903360386,19.7902782,147.96,147.92,6.7602]
[1719903360969,19.0491,147.95,147.91,16.7607]
[1719903361674,7.5003782,147.96,147.92,6.7603]
[1719903361875,20.0,147.95,147.92,6.7603]
[1719903362995,32.29,147.95,147.92,6.7603]
[1719903364585,20.0,147.95,147.93,6.7598]
[1719903364808,32.29,147.96,147.94,6.7594]
[1719903365002,28.8645,147.97,147.94,6.7594]
[1719903365181,35.6226,147.97,147.93,6.7597]
[1719903368395,12.29,147.96,147.93,6.7597]
[1719903369394,19.7904782,147.96,147.92,23.6609]
[1719903369597,12.29,147.95,147.92,16.9006]
[1719903369793,19.0497,147.94,147.91,10.0]
[1719903370096,12.29,147.94,147.91,10.0]
[1719903370486,0.7416782,147.96,147.91,10.0]
[1719903370795,12.29,147.95,147.91,10.0]
[1719903370979,12.29,147.95,147.91,26.9017]
[1719903371886,19.7902782,147.96,147.92,6.7602]
[1719903372097,13.0316782,147.96,147.93,6.7599]
[1719903372897,19.7902782,147.96,147.92,6.7602]
[1719903373798,23.3326,147.97,147.93,6.7597]
[1719903373979,20.0,147.96,147.93,6.7597]
[1719903375189,12.29,147.97,147.94,6.7594]
[1719903376004,19.0481,147.97,147.93,23.6592]
[1719903376200,12.29,147.96,147.93,23.6592]
[1719903376910,19.0486,147.96,147.93,16.8995]
[1719903378601,12.29,147.96,147.93,23.6594]
[1719903379511,6.7582,147.97,147.93,23.6594]
[1719903379681,12.29,147.96,147.93,23.6594]
[1719903384992,19.0482,147.97,147.93,23.6594]
[1719903388303,19.7903782,147.96,147.93,16.8995]
[1719903388499,6.7581,147.97,147.93,23.6593]
[1719903388810,12.29,147.96,147.93,23.6593]
[1719903389310,19.7902782,147.96,147.93,16.8995]
[1719903390024,19.7902782,147.96,147.92,6.7602]
[1719903390193,12.29,147.94,147.91,16.7607]
[1719903390515,19.0495,147.94,147.91,10.0]
[1719903390810,19.0495,147.94,147.91,16.7608]
[1719903390811,12.29,147.94,147.91,16.7608]
[1719903391109,13.0316782,147.94,147.91,16.7608]
[1719903394099,13.0316782,147.94,147.91,10.0]
[1719903394100,12.29,147.92,147.91,10.0]
[1719903394811,13.0316782,147.92,147.91,10.0]
[1719903398112,12.29,147.92,147.91,10.0]
[1719903398506,13.0316782,147.92,147.91,10.0]
[1719903400433,39.7920782,147.92,147.91,10.0]
[1719903400633,47.01561532,147.92,147.91,10.0]
[1719903400806,59.30561532,147.92,147.91,10.0]
[1719903401132,27.5020782,147.92,147.91,10.0]
[1719903401427,59.30575833,147.92,147.91,10.0]
[1719903401608,39.7920782,147.92,147.91,10.0]
[1719903402921,20.7416782,147.92,147.83,115.2595]
[1719903403136,20.0,147.91,147.86,6.763]
[1719903403426,7.5030782,147.9,147.85,23.6718]
[1719903403738,20.0,147.89,147.86,6.7631]
[1719903404110,20.7416782,147.89,147.85,23.6718]
[1719903404423,39.7934782,147.89,147.85,23.6718]
[1719903404605,39.7934782,147.89,147.85,16.9084]
[1719903405121,39.7934782,147.89,147.85,23.6719]
[1719903405634,39.7934782,147.89,147.85,16.9084]
[1719903406833,26.7618,147.89,147.85,23.6719]
[1719903407014,26.7618,147.89,147.83,121.5187]
[1719903407015,12.29,147.87,147.83,115.2595]
[1719903407219,6.7627,147.87,147.83,106.7644]
[1719903407415,6.7627,147.87,147.83,119.0544]
[1719903407729,6.7632,147.86,147.83,100.0]
[1719903408414,19.0532,147.86,147.83,100.0]
[1719903409720,12.29,147.86,147.83,100.0]
[1719903410240,12.29,147.86,147.82,6.7646]
[1719903410738,12.29,147.86,147.83,6.7644]
[1719903410934,7.5044782,147.87,147.83,6.7644]
[1719903411134,12.29,147.86,147.84,6.7638]
[1719903411336,12.29,147.86,147.83,16.9108]
[1719903411638,12.29,147.86,147.83,23.675]
[1719903411837,12.29,147.87,147.83,16.9108]
[1719903412522,12.29,147.87,147.84,6.764]
[1719903412925,12.29,147.86,147.84,6.764]
[1719903413424,0.7416782,147.88,147.85,6.7635]
[1719903413609,0.7416782,147.89,147.86,6.763]
[1719903413811,12.29,147.88,147.86,6.763]
[1719903414026,12.29,147.88,147.85,6.7634]
[1719903414223,13.0316782,147.87,147.84,6.7639]
[1719903414640,12.29,147.87,147.84,6.7639]
[1719903415537,7.5038782,147.88,147.84,6.7639]
[1719903415743,7.5034782,147.89,147.85,16.9086]
[1719903415922,12.29,147.87,147.85,16.9086]
[1719903416447,20.0,147.88,147.85,16.9086]
[1719903416647,12.29,147.87,147.85,23.6721]
[1719903418240,0.7416782,147.9,147.85,23.6721]
[1719903418241,0.7416782,147.9,147.87,6.7626]
[1719903418434,0.7416782,147.91,147.88,6.7622]
[1719903418642,0.7416782,147.91,147.85,29.1986]
[1719903418643,12.29,147.9,147.85,29.1986]
[1719903419020,13.0316782,147.89,147.86,6.763]
[1719903419639,12.29,147.89,147.86,6.763]
[1719903419836,7.5026782,147.91,147.86,6.763]
[1719903420041,12.29,147.89,147.86,6.763]
[1719903421758,12.29,147.89,147.87,6.7626]
[1719903423548,32.29,147.9,147.87,6.7626]
[1719903423781,32.29,147.9,147.86,6.7629]
[1719903425354,20.0,147.9,147.87,6.7625]
[1719903425557,8.01631365,147.92,147.88,6.762]
[1719903425558,14.77671365,147.92,147.88,6.762]
[1719903425744,32.29,147.91,147.88,6.762]
[1719903426456,39.0508,147.91,147.87,23.6688]
[1719903427049,19.0513,147.9,147.87,16.9063]
[1719903427262,19.7929782,147.9,147.87,16.9063]
[1719903427635,12.29,147.9,147.87,23.6689]
[1719903428555,19.0514,147.9,147.87,16.9063]
[1719903429237,20.7416782,147.91,147.85,6.7634]
[1719903429238,19.7933782,147.89,147.85,6.7634]
[1719903429857,19.7933782,147.89,147.84,6.7638]
[1719903430162,6.7622,147.88,147.84,6.7638]
[1719903431312,19.7935782,147.89,147.85,6.7635]
[1719903431839,27.5026782,147.91,147.87,6.7626]
[1719903432040,12.29,147.9,147.87,6.7626]
[1719903432739,19.0513,147.9,147.86,6.763]
[1719903434669,19.0513,147.9,147.85,16.9085]
[1719903434670,0.7416782,147.89,147.85,16.9085]
[1719903434861,12.29,147.88,147.85,16.9085]
[1719903435270,19.0522,147.88,147.85,16.9085]
[1719903435769,12.29,147.88,147.85,16.9085]
[1719903436078,19.7935782,147.89,147.85,23.672]
[1719903436258,19.0519,147.89,147.85,23.672]
[1719903438815,12.29,147.89,147.86,6.7631]
[1719903438958,12.29,147.9,147.87,6.7626]
[1719903439765,26.761,147.91,147.87,6.7626]
[1719903439969,12.29,147.9,147.87,6.7626]
[1719903440273,26.761,147.91,147.87,6.7626]
[1719903440483,19.0513,147.9,147.86,6.763]
[1719903442283,19.0513,147.9,147.87,6.7626]
[1719903442482,12.29,147.9,147.87,6.7626]
[1719903443196,12.29,147.9,147.85,29.1985]
[1719903443372,19.7929782,147.9,147.86,6.7629]
[1719903443690,19.7929782,147.9,147.81,0.8406834]
[1719903443691,6.7643,147.84,147.81,0.8406834]
[1719903443896,19.0543,147.84,147.81,0.8406834]
[1719903444592,12.29,147.83,147.81,0.8406834]
[1719903445090,12.29,147.84,147.81,0.8406834]
[1719903445266,13.0316782,147.84,147.81,0.8406834]
[1719903445466,13.0316782,147.84,147.81,7.6058834]
[1719903447795,12.29,147.84,147.81,7.6058834]
[1719903448388,12.29,147.84,147.82,6.7649]
[1719903449099,0.7416782,147.85,147.81,17.7538834]
[1719903449273,12.29,147.85,147.82,6.7648]
[1719903449472,0.7416782,147.84,147.82,6.7648]
[1719903449979,13.0316782,147.84,147.82,6.7648]
[1719903450196,12.29,147.84,147.82,6.7648]
[1719903450780,0.7416782,147.83,147.81,24.5192834]
[1719903452006,0.7416782,147.83,147.81,17.7538834]
[1719903452300,12.29,147.83,147.81,17.7538834]
[1719903452987,0.7416782,147.84,147.81,24.5188834]
[1719903453505,12.29,147.83,147.81,24.5188834]
[1719903454776,0.7416782,147.84,147.81,24.5188834]
[1719903454973,0.7416782,147.88,147.81,0.8406834]
[1719903455186,12.29,147.84,147.82,6.7649]
[1719903455698,12.29,147.84,147.81,7.6059834]
[1719903456398,12.29,147.83,147.81,7.6059834]
[1719903457190,12.29,147.84,147.81,7.6059834]
[1719903457387,0.7416782,147.85,147.81,7.6059834]
[1719903457596,6.7649,147.82,147.81,0.8406834]
[1719903457897,6.7649,147.82,147.7,83.0123]
[1719903457898,6.7664,147.79,147.74,23.6896]
[1719903458079,7.5086782,147.78,147.74,16.9214]
[1719903458273,7.5088782,147.77,147.73,6.7687]
[1719903458472,7.5088782,147.77,147.72,119.0594]
[1719903458473,6.7672,147.77,147.72,119.0594]
[1719903458683,19.0572,147.77,147.73,6.769]
[1719903459304,0.7416782,147.81,147.71,16.9244]
[1719903459475,6.7675,147.77,147.72,12.29]
[1719903459683,12.29,147.75,147.71,16.9244]
[1719903460075,0.7416782,147.78,147.74,6.7686]
[1719903460312,0.7416782,147.8,147.73,35.9811]
[1719903460605,20.0,147.81,147.73,23.6911]
[1719903460606,12.29,147.78,147.73,23.6911]
[1719903460779,20.0,147.77,147.73,23.6911]
[1719903460972,20.0,147.77,147.73,16.9221]
[1719903461178,0.7416782,147.8,147.73,29.2121]
[1719903461480,12.29,147.77,147.73,23.6908]
[1719903461679,12.29,147.77,147.74,6.7685]
[1719903461897,12.29,147.77,147.72,100.0]
[1719903462101,12.29,147.77,147.73,6.7687]
[1719903462295,12.29,147.76,147.73,6.7687]
[1719903462500,6.7669,147.78,147.73,6.7687]
[1719903462718,19.0573,147.77,147.73,6.7687]
[1719903462999,12.29,147.77,147.73,6.7687]
[1719903463390,13.0316782,147.77,147.73,6.7687]
[1719903463787,0.7416782,147.8,147.74,16.9211]
[1719903463994,0.7416782,147.8,147.76,6.7673]
[1719903463995,12.29,147.79,147.76,6.7673]
[1719903464177,32.29,147.78,147.76,6.7673]
[1719903464374,12.29,147.78,147.75,6.7681]
[1719903464574,12.29,147.78,147.74,16.9211]
[1719903464781,12.29,147.77,147.74,23.6894]
[1719903464997,12.29,147.77,147.75,6.7681]
[1719903465207,20.0,147.76,147.72,6.7693]
[1719903465383,20.0,147.76,147.73,6.7689]
[1719903467302,12.29,147.77,147.73,6.7689]
[1719903467303,0.7416782,147.81,147.75,6.7681]
[1719903467613,12.29,147.78,147.75,6.7681]
[1719903467785,12.29,147.78,147.74,6.7685]
[1719903467986,12.29,147.77,147.74,6.7685]
[1719903470087,12.29,147.77,147.75,6.768]
[1719903470288,19.0583,147.75,147.71,6.7696]
[1719903470902,6.7687,147.74,147.7,6.7704]
[1719903471113,19.0587,147.74,147.7,6.7704]
[1719903471307,12.29,147.74,147.71,6.7699]
[1719903472024,12.29,147.72,147.68,107.02020413]
[1719903472314,6.7708,147.7,147.68,7.02020413]
[1719903472706,0.7416782,147.71,147.68,7.02020413]
[1719903472914,6.7701,147.71,147.68,7.02020413]
[1719903473097,19.8015782,147.72,147.68,13.79150413]
[1719903473301,0.7416782,147.76,147.68,7.02020413]
[1719903473528,12.29,147.72,147.68,7.02020413]
[1719903473698,0.7416782,147.71,147.68,13.79150413]
[1719903473901,13.0316782,147.71,147.68,13.79150413]
[1719903475210,12.29,147.71,147.68,13.79150413]
[1719903475712,12.29,147.71,147.69,6.7709]
[1719903475902,0.7416782,147.72,147.69,6.7709]
[1719903476227,12.29,147.72,147.7,6.7704]
[1719903477327,0.7416782,147.73,147.71,6.7698]
[1719903477501,12.29,147.73,147.71,6.7698]
[1719903477827,12.29,147.72,147.7,23.6955]
[1719903481844,12.29,147.73,147.71,6.77]
[1719903482013,0.7416782,147.75,147.72,6.7691]
[1719903482211,12.29,147.73,147.71,6.7696]
[1719903482529,0.7416782,147.75,147.71,6.7696]
[1719903482729,7.5097782,147.76,147.72,6.7695]
[1719903483039,12.29,147.74,147.72,6.7695]
[1719903483425,7.5097782,147.76,147.72,6.7695]
[1719903483726,16.8228997,147.77,147.73,6.769]
[1719903483903,10.0555997,147.77,147.73,6.769]
[1719903484109,12.29,147.76,147.73,6.769]
[1719903485233,12.29,147.76,147.72,23.693]
[1719903485421,12.29,147.75,147.72,23.693]
[1719903486126,19.0581,147.75,147.72,16.9236]
[1719903486531,12.29,147.74,147.71,6.7699]
[1719903487334,6.7681,147.75,147.71,6.7699]
[1719903487633,12.29,147.74,147.71,6.7699]
[1719903488245,19.0587,147.74,147.7,6.7704]
[1719903488423,13.0316782,147.74,147.69,38.6986]
[1719903488742,19.0587,147.74,147.7,6.7703]
[1719903489233,12.29,147.74,147.7,6.7703]
[1719903489745,12.29,147.74,147.71,6.77]
[1719903490447,10.79772466,147.75,147.72,6.7694]
[1719903490619,12.29,147.74,147.72,6.7694]
[1719903490947,22.34604646,147.75,147.72,6.7695]
[1719903491718,29.11424646,147.75,147.71,23.6944]
[1719903491934,29.11538966,147.75,147.71,23.6944]
[1719903492649,12.29,147.74,147.71,23.6944]
[1719903494743,22.34604737,147.75,147.73,6.7691]
[1719903496621,29.11454737,147.75,147.71,23.6945]
[1719903497128,12.29,147.74,147.71,23.6945]
[1719903498624,22.35068107,147.75,147.73,6.7691]
[1719903498935,22.35068107,147.75,147.72,6.7694]
[1719903500050,10.06068107,147.75,147.73,74.2122]
[1719903500343,10.06068107,147.75,147.74,6.7686]
[1719903500549,10.06068107,147.75,147.73,61.9222]
[1719903500725,10.06068107,147.75,147.74,6.7686]
[1719903501244,10.06429388,147.75,147.73,68.6911]
[1719903503453,10.06429388,147.74,147.73,68.6911]
[1719903503650,10.06429388,147.74,147.73,61.9222]
[1719903504345,19.0577,147.76,147.73,61.9222]
[1719903504554,10.06220765,147.74,147.73,61.9222]
[1719903505942,10.06220765,147.74,147.73,201.3113]
[1719903506247,0.7416782,147.83,147.77,6.7671]
[1719903506248,19.0552,147.82,147.77,6.7671]
[1719903506555,6.7652,147.82,147.78,64.0566]
[1719903506725,19.0552,147.82,147.78,45.0]
[1719903507446,6.7645,147.83,147.78,45.0]
[1719903507747,19.055,147.82,147.78,51.7667]
[1719903508331,12.29,147.82,147.78,51.7666]
[1719903508531,6.7646,147.83,147.78,51.7666]
[1719903508732,12.29,147.82,147.78,51.7666]
[1719903509752,19.0546,147.83,147.78,51.7666]
[1719903510361,19.0546,147.83,147.79,6.7663]
[1719903511065,6.7646,147.83,147.79,6.7663]
[1719903511358,19.7958782,147.84,147.79,6.7663]
[1719903511941,12.29,147.84,147.8,45.0]
[1719903512140,19.0536,147.85,147.8,74.2044]
[1719903512336,12.29,147.85,147.8,74.2044]
[1719903513042,12.29,147.85,147.82,6.7648]
[1719903513558,12.29,147.85,147.81,6.7652]
[1719903514866,6.7633,147.86,147.81,19.0552]
[1719903515269,19.0533,147.86,147.81,19.0552]
[1719903515449,14.70777379,147.88,147.84,6.764]
[1719903515450,19.7941782,147.88,147.84,6.764]
[1719903515650,19.0525,147.88,147.84,6.764]
[1719903515967,6.7625,147.88,147.84,6.764]
[1719903516866,15.4072,147.89,147.85,6.7633]
[1719903517069,22.9109782,147.89,147.84,35.9634]
[1719903517371,35.2009782,147.89,147.84,35.9634]
[1719903517957,6.7622,147.88,147.84,35.9634]
[1719903518678,6.7627,147.87,147.84,16.9095]
[1719903519465,12.29,147.86,147.82,51.7649]
[1719903519776,12.29,147.86,147.82,45.0]
[1719903519981,19.7944782,147.87,147.83,6.7644]
[1719903521657,12.29,147.87,147.84,6.7639]
[1719903521856,7.5039782,147.88,147.84,6.7639]
[1719903522173,12.29,147.87,147.84,6.7639]
[1719903524072,13.0316782,147.88,147.85,6.7635]
[1719903524663,7.5035782,147.89,147.85,6.7635]
[1719903524861,13.0316782,147.88,147.85,6.7635]
[1719903525366,0.7416782,147.91,147.83,29.2009]
[1719903525584,12.29,147.89,147.86,6.7631]
[1719903525791,13.0316782,147.89,147.86,6.7631]
[1719903526989,12.29,147.89,147.86,6.7631]
[1719903529293,12.29,147.89,147.85,23.6722]
[1719903529591,19.7935782,147.89,147.85,23.6722]
[1719903530687,19.0519,147.89,147.85,23.6722]
[1719903530889,12.29,147.88,147.85,23.6722]
[1719903531391,6.7614,147.9,147.86,6.7631]
[1719903531595,19.0514,147.9,147.86,6.7631]
[1719903531970,6.7618,147.89,147.85,35.9622]
[1719903532168,19.0522,147.88,147.85,16.9088]
[1719903532690,12.29,147.88,147.85,23.6723]
[1719903534608,0.7416782,147.89,147.86,6.763]
[1719903534793,19.7929782,147.9,147.86,6.763]
[1719903535177,7.5026782,147.91,147.87,6.7626]
[1719903535503,7.5026782,147.91,147.88,6.7622]
[1719903535504,13.0316782,147.91,147.88,6.7622]
[1719903535704,19.7925782,147.91,147.87,23.669]
[1719903536996,12.29,147.9,147.87,23.669]
[1719903540204,13.0316782,147.89,147.84,29.1993]
[1719903540407,19.052,147.89,147.85,6.7632]
[1719903540785,12.29,147.89,147.86,6.7629]
[1719903540987,19.0513,147.9,147.86,6.7629]
[1719903541302,12.29,147.9,147.87,6.7626]
[1719903542500,19.0513,147.9,147.86,23.6704]
[1719903543006,12.29,147.89,147.86,23.6704]
[1719903545902,12.29,147.89,147.83,29.2004]
[1719903545903,12.29,147.88,147.83,29.2004]
[1719903546505,13.0316782,147.9,147.85,16.9086]
[1719903546989,13.0316782,147.9,147.87,6.7622]
[1719903547400,12.29,147.9,147.87,6.7622]
[1719903547704,7.5025782,147.91,147.87,6.7622]
[1719903548212,12.29,147.9,147.87,6.7622]
[1719903549003,0.7416782,147.91,147.87,16.9061]
[1719903549302,13.0316782,147.91,147.87,16.9061]
[1719903549500,12.29,147.9,147.88,6.7619]
[1719903549697,12.29,147.9,147.87,23.6686]
[1719903554583,7.5025782,147.91,147.87,23.6686]
[1719903554809,12.29,147.9,147.87,23.6686]
[1719903556005,7.5025782,147.91,147.87,23.6686]
[1719903556212,12.29,147.9,147.87,23.6686]
[1719903556708,12.29,147.9,147.87,16.9061]
[1719903557603,12.29,147.9,147.87,23.6686]
[1719903559512,12.29,147.9,147.88,6.7621]
[1719903560305,0.7416782,147.91,147.88,6.7621]
[1719903560491,13.0316782,147.91,147.88,6.7621]
[1719903562324,19.7924782,147.91,147.87,23.6686]
[1719903567513,12.29,147.9,147.88,6.7622]
[1719903571100,13.0316782,147.89,147.87,16.9061]
[1719903571296,16.2879,147.92,147.86,6.7629]
[1719903571297,12.29,147.88,147.86,6.7629]
[1719903571897,12.29,147.88,147.85,6.7634]
[1719903573225,12.29,147.88,147.86,6.763]
[1719903574920,12.29,147.87,147.86,6.763]
[1719903575524,0.7416782,147.93,147.87,112.29]
[1719903575735,19.51566355,147.93,147.88,33.8107]
[1719903575917,20.25734175,147.95,147.93,6.7599]
[1719903576108,19.5123367,147.94,147.93,6.7599]
[1719903576319,31.8023367,147.95,147.94,6.7594]
[1719903576704,12.29,147.95,147.93,6.7598]
[1719903579323,12.29,147.95,147.92,6.7602]
[1719903579519,12.29,147.94,147.91,23.6621]
[1719903580129,12.29,147.93,147.91,23.6621]
[1719903581122,12.29,147.94,147.91,23.6621]
[1719903581320,12.29,147.94,147.92,6.7603]
[1719903581998,0.7416782,147.95,147.92,6.7603]
[1719903582203,12.29,147.94,147.92,6.7603]
[1719903582424,7.4997782,147.97,147.92,6.7602]
[1719903582726,12.29,147.95,147.92,6.7602]
[1719903583311,12.29,147.95,147.91,23.6621]
[1719903583524,12.29,147.94,147.91,23.6621]
[1719903583900,12.29,147.93,147.91,23.6621]
[1719903584843,12.29,147.93,147.9,6.7612]
[1719903585007,12.29,147.91,147.85,12.29]
[1719903585329,12.29,147.9,147.87,6.7625]
[1719903586027,12.29,147.9,147.88,6.762]
[1719903588031,12.29,147.9,147.89,6.7617]
[1719903588530,12.29,147.91,147.89,6.7617]
[1719903589532,12.29,147.91,147.9,6.7613]
[1719903590619,12.29,147.91,147.89,6.7616]
[1719903592319,7.5012782,147.94,147.9,6.7613]
[1719903592516,12.29,147.92,147.9,6.7613]
[1719903593207,12.29,147.92,147.89,6.7617]
[1719903593434,12.29,147.91,147.89,6.7617]
[1719903594836,7.5011782,147.94,147.9,6.7613]
[1719903595021,12.29,147.92,147.9,6.7613]
[1719903596135,12.29,147.91,147.86,100.0]
[1719903596311,12.29,147.91,147.84,54.1502]
[1719903596312,12.29,147.9,147.84,154.1502]
[1719903596635,12.29,147.9,147.85,57.29]
[1719903596939,12.29,147.9,147.88,6.7619]
[1719903597236,12.29,147.9,147.89,6.7617]
[1719903597732,12.29,147.9,147.88,6.7622]
[1719903597922,0.7416782,147.92,147.89,6.7617]
[1719903598123,12.29,147.9,147.88,6.7621]
[1719903599439,0.7416782,147.92,147.88,6.7621]
[1719903599625,12.29,147.91,147.89,6.7616]
[1719903599936,6.7601,147.93,147.89,6.7616]
[1719903600232,12.29,147.92,147.89,6.7616]
[1719903600540,12.29,147.9,147.87,6.7625]
[1719903600736,12.29,147.89,147.86,6.7629]
[1719903600937,12.29,147.88,147.86,6.7629]
[1719903601239,12.29,147.88,147.85,6.7634]
[1719903603438,12.29,147.86,147.8,33.8276]
[1719903603746,0.7416782,147.87,147.83,6.7641]
[1719903603968,6.7628,147.87,147.83,6.7641]
[1719903604241,12.29,147.86,147.83,6.7641]
[1719903604427,12.29,147.86,147.81,12.29]
[1719903604632,12.29,147.86,147.8,133.8276]
[1719903604633,0.7416782,147.89,147.85,6.7635]
[1719903604936,12.29,147.88,147.85,6.7635]
[1719903605647,12.29,147.88,147.84,6.7639]
[1719903606437,6.7618,147.89,147.85,6.7633]
[1719903606616,19.0518,147.89,147.85,6.7633]
[1719903607746,0.7416782,147.92,147.86,12.29]
[1719903608045,12.29,147.91,147.87,6.7626]
[1719903608338,6.7608,147.92,147.87,6.7626]
[1719903608513,6.7608,147.92,147.87,112.29]
[1719903608514,12.29,147.92,147.87,112.29]
[1719903608720,12.29,147.93,147.89,6.7614]
[1719903609122,19.0499,147.93,147.89,6.7614]
[1719903609422,19.0499,147.93,147.89,6.7616]
[1719903609423,12.29,147.93,147.89,6.7616]
[1719903609618,12.29,147.92,147.89,6.7616]
[1719903609832,19.0505,147.92,147.88,51.7621]
[1719903610623,12.29,147.92,147.88,51.7621]
[1719903611817,19.0514,147.9,147.86,6.7628]
[1719903612133,19.0518,147.89,147.85,6.7635]
[1719903612333,12.29,147.89,147.85,6.7635]
[1719903612645,12.29,147.9,147.87,6.7623]
[1719903615442,6.7605,147.92,147.87,6.7623]
[1719903615648,19.0505,147.92,147.88,6.7621]
[1719903615952,12.29,147.92,147.88,6.7621]
[1719903616145,12.29,147.93,147.9,6.7611]
[1719903617141,12.29,147.92,147.89,6.7616]
[1719903617326,19.051,147.91,147.87,6.7622]
[1719903617525,12.29,147.9,147.87,6.7622]
[1719903618532,6.761,147.91,147.87,6.7622]
[1719903618739,12.29,147.9,147.87,6.7622]
[1719903619732,12.29,147.9,147.88,6.762]
[1719903620330,13.0316782,147.89,147.84,22.6339]
[1719903620544,13.0316782,147.89,147.82,100.0]
[1719903620545,12.29,147.88,147.85,6.7635]
[1719903620945,0.7416782,147.88,147.85,6.7635]
[1719903621148,12.29,147.86,147.84,6.764]
[1719903622065,0.7416782,147.85,147.76,122.7816]
[1719903622232,12.29,147.83,147.81,6.765]
[1719903622659,12.29,147.84,147.83,6.7645]
[1719903622839,0.7416782,147.87,147.84,6.7638]
[1719903623041,12.29,147.86,147.84,6.7638]
[1719903624635,12.29,147.86,147.83,6.7644]
[1719903624836,12.29,147.85,147.83,6.7644]
[1719903626641,0.7416782,147.85,147.77,20.33]
[1719903626848,12.29,147.84,147.8,6.7657]
[1719903627048,12.29,147.83,147.8,6.7657]
[1719903627656,12.29,147.83,147.81,6.7653]
[1719903629566,12.29,147.83,147.82,6.7649]
[1719903630556,12.29,147.83,147.81,6.7654]
[1719903630767,0.7416782,147.82,147.79,6.7662]
[1719903631458,12.29,147.8,147.79,6.7662]
[1719903632065,12.29,147.8,147.72,121.4578]
[1719903632264,0.7416782,147.79,147.72,21.4578]
[1719903632444,0.7416782,147.79,147.73,12.29]
[1719903632768,12.29,147.8,147.78,6.7667]
[1719903633062,0.7416782,147.79,147.78,6.7667]
[1719903633445,12.29,147.79,147.78,6.7667]
[1719903633864,0.7416782,147.82,147.75,100.0]
[1719903634047,12.29,147.81,147.8,6.7658]
[1719903634247,12.29,147.81,147.79,6.7663]
[1719903635149,12.29,147.81,147.73,45.0]
[1719903635150,0.7416782,147.83,147.77,112.29]
[1719903635345,0.7416782,147.86,147.82,6.7646]
[1719903635669,12.29,147.83,147.79,6.7663]
[1719903635859,12.29,147.81,147.79,6.7663]
[1719903636042,12.29,147.81,147.8,6.7658]